lending/lending_fUSD_20240228
["ID","MTS","AMOUNT","RATE_DAILY","PERIOD"]
[315754258,1709163065405,-1590.11,0.00022998,2]
[315754259,1709163065414,-1590.11,0.00022998,2]
[315754260,1709163065423,-1590.11,0.00022998,2]
[315754261,1709163065433,-4588.87,0.00022998,2]
[315754262,1709163065443,-477.01819222,0.00022998,2]
[315754263,1709163065453,-3338.2,0.00022998,2]
[315754264,1709163065463,-3338.2,0.00022998,2]
[315754265,1709163065473,-3338.2,0.00022998,2]
[315754266,1709163065485,-3338.2,0.00022998,2]
[315754267,1709163065495,-500.0,0.00022998,2]
[315754268,1709163065507,-3338.2,0.00022998,2]
[315754269,1709163065517,-500.0,0.00022998,2]
[315754270,1709163065527,-3338.2,0.00022998,2]
[315754271,1709163065536,-500.0,0.00022998,2]
[315754272,1709163065546,-3338.2,0.00022998,2]
[315754273,1709163065555,-500.0,0.00022998,2]
[315754274,1709163065565,-500.0,0.00022998,2]
[315754275,1709163065575,-500.0,0.00022998,2]
[315754276,1709163065585,-500.0,0.00022998,2]
[315754277,1709163065595,-500.0,0.00022998,2]
[315754278,1709163065604,-500.0,0.00022998,2]
[315754279,1709163065615,-500.0,0.00022998,2]
[315754280,1709163065625,-500.0,0.00022998,2]
[315754281,1709163065635,-500.0,0.00022998,2]
[315754282,1709163065645,-500.0,0.00022998,2]
[315754283,1709163065655,-500.0,0.00022998,2]
[315754284,1709163065664,-500.0,0.00022998,2]
[315754285,1709163065674,-500.0,0.00022998,2]
[315754286,1709163065683,-500.0,0.00022998,2]
[315754287,1709163065693,-500.0,0.00022998,2]
[315754288,1709163065703,-500.0,0.00022998,2]
[315754289,1709163065713,-500.0,0.00022998,2]
[315754290,1709163065723,-500.0,0.00022998,2]
[315754291,1709163065736,-500.0,0.00022998,2]
[315754292,1709163065746,-1051.52,0.00022998,2]
[315754293,1709163065756,-500.0,0.00022998,2]
[315754294,1709163065766,-1051.52,0.00022998,2]
[315754295,1709163065777,-1051.52,0.00022998,2]
[315754296,1709163065787,-1051.52,0.00022998,2]
[315754297,1709163065797,-12421.13,0.00022998,2]
[315754298,1709163065807,-1051.52,0.00022998,2]
[315754299,1709163065819,-591.29,0.00022998,2]
[315754300,1709163065829,-914.21,0.00022998,2]
[315754301,1709163065839,-591.29,0.00022998,2]
[315754302,1709163065848,-914.21,0.00022998,2]
[315754303,1709163065858,-1022.22,0.00022998,2]
[315754304,1709163065867,-914.21,0.00022998,2]
[315754305,1709163065877,-1022.22,0.00022998,2]
[315754306,1709163065888,-1022.22,0.00022998,2]
[315754307,1709163065899,-1022.22,0.00022998,2]
[315754308,1709163065909,-914.21,0.00022998,2]
[315754309,1709163065919,-1022.22,0.00022998,2]
[315754310,1709163065929,-914.21,0.00022998,2]
[315754311,1709163065939,-1022.22,0.00022998,2]
[315754312,1709163065949,-500.0,0.00022998,2]
[315754313,1709163065959,-632.07,0.00022998,2]
[315754314,1709163065969,-1022.22,0.00022998,2]
[315754315,1709163065981,-480.9,0.00022998,2]
[315754316,1709163065991,-652.88,0.00022998,2]
[315754317,1709163066001,-652.88,0.00022998,2]
[315754318,1709163066011,-652.88,0.00022998,2]
[315754319,1709163066022,-652.88,0.00022998,2]
[315754320,1709163066032,-652.88,0.00022998,2]
[315754321,1709163066042,-500.0,0.00022998,2]
[315754322,1709163066052,-500.0,0.00022998,2]
[315754323,1709163066062,-520.83,0.00022998,2]
[315754324,1709163066072,-520.83,0.00022998,2]
[315754325,1709163066082,-520.83,0.00022998,2]
[315754326,1709163066091,-520.83,0.00022998,2]
[315754327,1709163066102,-520.83,0.00022998,2]
[315754328,1709163066112,-500.0,0.00022998,2]
[315754329,1709163066122,-520.83,0.00022998,2]
[315754330,1709163066133,-500.0,0.00022998,2]
[315754331,1709163066143,-520.83,0.00022998,2]
[315754332,1709163066154,-500.0,0.00022998,2]
[315754333,1709163066164,-670.85,0.00022998,2]
[315754334,1709163066174,-500.0,0.00022998,2]
[315754335,1709163066184,-500.0,0.00022998,2]
[315754336,1709163066194,-670.85,0.00022998,2]
[315754337,1709163066204,-670.85,0.00022998,2]
[315754338,1709163066214,-500.0,0.00022998,2]
[315754339,1709163066224,-670.85,0.00022998,2]
[315754340,1709163066236,-670.85,0.00022998,2]
[315754341,1709163066246,-670.85,0.00022998,2]
[315754342,1709163066256,-670.85,0.00022998,2]
[315754343,1709163066267,-670.85,0.00022998,2]
[315754344,1709163066277,-546.29,0.00022998,2]
[315754345,1709163066288,-500.0,0.00022998,2]
[315754346,1709163066298,-500.0,0.00022998,2]
[315754347,1709163066310,-2529.45,0.00022998,2]
[315754348,1709163066320,-500.0,0.00022998,2]
[315754349,1709163066331,-500.0,0.00022998,2]
[315754350,1709163066342,-500.0,0.00022998,2]
[315754351,1709163066352,-500.0,0.00022998,2]
[315754352,1709163066363,-500.0,0.00022998,2]
[315754353,1709163066374,-368.04847665,0.00022998,2]
[315754354,1709163066384,-1157.64,0.00022998,2]
[315754355,1709163066394,-500.0,0.00022998,2]
[315754356,1709163066405,-151.0,0.00022998,2]
[315754357,1709163066416,-500.0,0.00022998,2]
[315754358,1709163066426,-500.0,0.00022998,2]
[315754359,1709163066437,-500.0,0.00022998,2]
[315754360,1709163066448,-583.56,0.00022998,2]
[315754361,1709163066459,-583.56,0.00022998,2]
[315754362,1709163066470,-578.94,0.00022998,2]
[315754363,1709163066483,-583.56,0.00022998,2]
[315754364,1709163066494,-578.94,0.00022998,2]
[315754365,1709163066505,-583.56,0.00022998,2]
[315754366,1709163066516,-583.56,0.00022998,2]
[315754367,1709163066527,-578.94,0.00022998,2]
[315754368,1709163066539,-578.94,0.00022998,2]
[315754369,1709163066550,-578.94,0.00022998,2]
[315754370,1709163066561,-886.68,0.00022998,2]
[315754371,1709163066573,-578.94,0.00022998,2]
[315754372,1709163066584,-578.94,0.00022998,2]
[315754373,1709163066595,-500.0,0.00022998,2]
[315754374,1709163066606,-500.0,0.00022998,2]
[315754375,1709163066617,-500.0,0.00022998,2]
[315754376,1709163066629,-500.0,0.00022998,2]
[315754377,1709163066640,-500.0,0.00022998,2]
[315754378,1709163066651,-1036.21,0.00022998,2]
[315754379,1709163066662,-576.47,0.00022998,2]
[315754380,1709163066673,-576.47,0.00022998,2]
[315754381,1709163066683,-500.0,0.00022998,2]
[315754382,1709163066694,-576.47,0.00022998,2]
[315754383,1709163066704,-164.577162,0.00022998,7]
[315754384,1709163066715,-576.47,0.00022998,2]
[315754385,1709163066725,-2289.09,0.00022998,2]
[315754386,1709163066739,-576.47,0.00022998,2]
[315754387,1709163066749,-2289.09,0.00022998,2]
[315754388,1709163066759,-576.47,0.00022998,2]
[315754389,1709163066770,-2289.09,0.00022998,2]
[315754390,1709163066781,-576.47,0.00022998,2]
[315754391,1709163066793,-2289.09,0.00022998,2]
[315754392,1709163066804,-576.47,0.00022998,2]
[315754393,1709163066816,-2289.09,0.00022998,2]
[315754394,1709163066829,-580.77,0.00022998,2]
[315754395,1709163066841,-2289.09,0.00022998,2]
[315754396,1709163066851,-2289.09,0.00022998,2]
[315754397,1709163066861,-164.577162,0.00022998,7]
[315754398,1709163066872,-3652.92,0.00022998,2]
[315754399,1709163066882,-3652.92,0.00022998,2]
[315754400,1709163066893,-3652.92,0.00022998,2]
[315754401,1709163066903,-3652.92,0.00022998,2]
[315754402,1709163066913,-3652.92,0.00022998,2]
[315754403,1709163066924,-500.0,0.00022998,2]
[315754404,1709163066935,-500.0,0.00022998,2]
[315754405,1709163066945,-500.0,0.00022998,2]
[315754406,1709163066955,-802.25,0.00022998,2]
[315754407,1709163066965,-500.0,0.00022998,2]
[315754408,1709163066976,-802.25,0.00022998,2]
[315754409,1709163066994,-500.0,0.00022998,2]
[315754410,1709163067009,-802.25,0.00022998,2]
[315754411,1709163067023,-500.0,0.00022998,2]
[315754412,1709163067035,-802.25,0.00022998,2]
[315754413,1709163067046,-500.0,0.00022998,2]
[315754414,1709163067059,-802.25,0.00022998,2]
[315754415,1709163067072,-500.0,0.00022998,2]
[315754416,1709163067086,-151.0,0.00022998,7]
[315754417,1709163067099,-500.0,0.00022998,2]
[315754418,1709163067112,-2399.41,0.00022998,2]
[315754419,1709163067124,-2399.41,0.00022998,2]
[315754420,1709163067135,-2399.41,0.00022998,2]
[315754421,1709163067148,-2399.41,0.00022998,2]
[315754422,1709163067160,-2399.41,0.00022998,2]
[315754423,1709163067172,-2399.41,0.00022998,2]
[315754424,1709163067184,-2399.41,0.00022998,2]
[315754425,1709163067197,-2399.41,0.00022998,2]
[315754426,1709163067209,-709.4,0.00022998,2]
[315754427,1709163067219,-709.4,0.00022998,2]
[315754428,1709163067233,-709.4,0.00022998,2]
[315754429,1709163067245,-709.4,0.00022998,2]
[315754430,1709163067260,-460.34731585,0.00022998,2]
[315754431,1709163067489,-249.05268415,0.00022998,2]
[315754432,1709163067500,-590.5,0.00022998,2]
[315754433,1709163067511,-590.5,0.00022998,2]
[315754434,1709163067525,-590.5,0.00022998,2]
[315754435,1709163067537,-616.3,0.00022998,2]
[315754436,1709163067549,-590.5,0.00022998,2]
[315754437,1709163067561,-590.5,0.00022998,2]
[315754438,1709163067573,-590.5,0.00022998,2]
[315754439,1709163067584,-590.5,0.00022998,2]
[315754440,1709163067595,-590.5,0.00022998,2]
[315754441,1709163067606,-3251.42,0.00022998,2]
[315754442,1709163067617,-481.17,0.00022998,2]
[315754443,1709163067629,-500.0,0.00022998,2]
[315754444,1709163067643,-500.0,0.00022998,2]
[315754445,1709163067655,-500.0,0.00022998,2]
[315754446,1709163067673,-500.0,0.00022998,2]
[315754447,1709163067685,-500.0,0.00022998,2]
[315754448,1709163067696,-500.0,0.00022998,2]
[315754449,1709163067709,-809.39,0.00022998,2]
[315754450,1709163067721,-809.39,0.00022998,2]
[315754451,1709163067735,-500.0,0.00022998,2]
[315754452,1709163067746,-809.39,0.00022998,2]
[315754453,1709163067758,-500.0,0.00022998,2]
[315754454,1709163067770,-809.39,0.00022998,2]
[315754455,1709163067780,-809.39,0.00022998,2]
[315754456,1709163067793,-809.39,0.00022998,2]
[315754457,1709163067806,-809.39,0.00022998,2]
[315754458,1709163067819,-809.39,0.00022998,2]
[315754459,1709163067830,-2010.52,0.00022998,2]
[315754460,1709163067842,-2010.52,0.00022998,2]
[315754461,1709163067855,-2010.52,0.00022998,2]
[315754462,1709163067867,-2010.52,0.00022998,2]
[315754463,1709163067878,-2010.52,0.00022998,2]
[315754464,1709163067891,-2010.52,0.00022998,2]
[315754465,1709163067910,-2010.52,0.00022998,2]
[315754466,1709163067922,-666.42,0.00022998,2]
[315754467,1709163067933,-1211.2,0.00022998,2]
[315754468,1709163067945,-1211.2,0.00022998,2]
[315754469,1709163067956,-1211.2,0.00022998,2]
[315754470,1709163067968,-1211.2,0.00022998,2]
[315754471,1709163067981,-500.0,0.00022998,2]
[315754472,1709163067993,-1211.2,0.00022998,2]
[315754473,1709163068005,-500.0,0.00022998,2]
[315754474,1709163068016,-500.0,0.00022998,2]
[315754475,1709163068027,-500.0,0.00022998,2]
[315754476,1709163068039,-634.24,0.00022998,2]
[315754477,1709163068051,-582.79,0.00022998,2]
[315754478,1709163068062,-582.79,0.00022998,2]
[315754479,1709163068074,-1664.01,0.00022998,2]
[315754480,1709163068085,-1664.01,0.00022998,2]
[315754481,1709163068097,-1664.01,0.00022998,2]
[315754482,1709163068108,-1664.01,0.00022998,2]
[315754483,1709163068120,-1664.01,0.00022998,2]
[315754484,1709163068131,-1664.01,0.00022998,2]
[315754485,1709163068142,-1664.01,0.00022998,2]
[315754486,1709163068153,-500.0,0.00022998,2]
[315754487,1709163068165,-500.0,0.00022998,2]
[315754488,1709163068177,-175.32943337,0.00022998,2]
[315754489,1709163068189,-500.0,0.00022998,2]
[315754490,1709163068200,-500.0,0.00022998,2]
[315754491,1709163068213,-500.0,0.00022998,2]
[315754492,1709163068224,-151.0,0.00022998,7]
[315754493,1709163068236,-500.0,0.00022998,2]
[315754494,1709163068247,-500.0,0.00022998,2]
[315754495,1709163068259,-500.0,0.00022998,2]
[315754496,1709163068270,-500.0,0.00022998,2]
[315754497,1709163068282,-500.0,0.00022998,2]
[315754498,1709163068293,-500.0,0.00022998,2]
[315754499,1709163068304,-486.11,0.00022998,2]
[315754500,1709163068315,-500.0,0.00022998,2]
[315754501,1709163068326,-336.26,0.00022998,2]
[315754502,1709163068338,-273.9426943,0.00022999,2]
[315754503,1709163068349,-204.6551733,0.00022999,2]
[315754504,1709163068360,-4988.28144534,0.00022999,2]
[315754505,1709163068372,-500.0,0.00022999,2]
[315754506,1709163068384,-500.0,0.00022999,2]
[315754507,1709163068395,-584.68,0.00022999,2]
[315754508,1709163068406,-500.0,0.00022999,2]
[315754509,1709163068417,-500.0,0.00022999,2]
[315754510,1709163068428,-500.0,0.00022999,2]
[315754511,1709163068440,-500.0,0.00022999,2]
[315754512,1709163068451,-160.14,0.00022999,2]
[315754513,1709163068463,-500.0,0.00022999,2]
[315754514,1709163068474,-500.0,0.00022999,2]
[315754515,1709163068489,-500.0,0.00022999,2]
[315754516,1709163068501,-500.0,0.00022999,2]
[315754517,1709163068512,-500.0,0.00022999,2]
[315754518,1709163068524,-578.22,0.00022999,2]
[315754519,1709163068535,-500.0,0.00022999,2]
[315754520,1709163068547,-500.0,0.00022999,2]
[315754521,1709163068559,-500.0,0.00022999,2]
[315754522,1709163068569,-500.0,0.00022999,2]
[315754523,1709163068579,-500.0,0.00022999,2]
[315754524,1709163068588,-500.0,0.00022999,2]
[315754525,1709163068598,-328.66,0.00022999,2]
[315754526,1709163068607,-500.0,0.00022999,2]
[315754527,1709163068616,-500.0,0.00022999,2]
[315754528,1709163068625,-500.0,0.00022999,2]
[315754529,1709163068635,-500.0,0.00022999,2]
[315754530,1709163068645,-160.007279,0.00022999,2]
[315754531,1709163068654,-500.0,0.00022999,2]
[315754532,1709163068663,-600.38,0.00022999,2]
[315754533,1709163068673,-606.49,0.00022999,2]
[315754534,1709163068682,-246.48362058,0.00022999,2]
[315754535,1709163068691,-500.0,0.00022999,2]
[315754536,1709163068700,-500.0,0.00022999,2]
[315754537,1709163068709,-500.0,0.00022999,2]
[315754538,1709163068718,-500.0,0.00022999,2]
[315754539,1709163068728,-500.0,0.00022999,2]
[315754540,1709163068739,-500.0,0.00022999,2]
[315754541,1709163068748,-500.0,0.00022999,2]
[315754542,1709163068758,-500.0,0.00022999,2]
[315754543,1709163068767,-500.0,0.00022999,2]
[315754544,1709163068776,-500.0,0.00022999,2]
[315754545,1709163068785,-500.0,0.00022999,2]
[315754546,1709163068796,-500.0,0.00022999,2]
[315754547,1709163068805,-500.0,0.00022999,2]
[315754548,1709163068816,-279.68908605,0.00022999,2]
[315754549,1709163068826,-1553.34,0.00022999,2]
[315754550,1709163068835,-1553.34,0.00022999,2]
[315754551,1709163068876,-1553.34,0.00022999,2]
[315754552,1709163068885,-1553.34,0.00022999,2]
[315754553,1709163068896,-1553.34,0.00022999,2]
[315754554,1709163068906,-1553.34,0.00022999,2]
[315754555,1709163068916,-1553.34,0.00022999,2]
[315754556,1709163068925,-1553.34,0.00022999,2]
[315754557,1709163068935,-1553.34,0.00022999,2]
[315754558,1709163068945,-1096.35934505,0.00022999,2]
[315754559,1709163068964,-456.98065495,0.00022999,2]
[315754560,1709163068974,-1553.34,0.00022999,2]
[315754561,1709163068987,-1114.36934505,0.00022999,2]
[315754562,1709163068998,-438.97065495,0.00022999,2]
[315754563,1709163069007,-903.02934505,0.00022999,2]
[315754564,1709163069018,-650.31065495,0.00022999,2]
[315754565,1709163069027,-1553.38838417,0.00022999,2]
[315754566,1709163069036,-432.38259147,0.00022999,2]
[315754567,1709163069045,-500.0,0.00022999,2]
[315754568,1709163069054,-500.0,0.00022999,2]
[315754569,1709163069063,-500.0,0.00022999,2]
[315754570,1709163069072,-500.0,0.00022999,2]
[315754571,1709163069081,-500.0,0.00022999,2]
[315754572,1709163069090,-500.0,0.00022999,2]
[315754573,1709163069099,-500.0,0.00022999,2]
[315754574,1709163069108,-62.82124825,0.00022999,2]
[315754575,1709163069124,-271.65339695,0.00022999,2]
[315754576,1709163069133,-500.0,0.00022999,2]
[315754577,1709163069142,-500.0,0.00022999,2]
[315754578,1709163069151,-500.0,0.00022999,2]
[315754579,1709163069160,-105.86414305,0.00022999,2]
[315754580,1709163069203,-394.13585695,0.00022999,2]
[315754581,1709163069212,-500.0,0.00022999,2]
[315754582,1709163069221,-500.0,0.00022999,2]
[315754583,1709163069232,-500.0,0.00022999,2]
[315754584,1709163069241,-500.0,0.00022999,2]
[315754585,1709163069250,-500.0,0.00022999,2]
[315754586,1709163069259,-500.0,0.00022999,2]
[315754587,1709163069268,-500.0,0.00022999,2]
[315754588,1709163069277,-298.50233544,0.00022999,2]
[315754589,1709163069286,-500.0,0.00022999,2]
[315754590,1709163069295,-500.0,0.00022999,2]
[315754591,1709163069304,-500.0,0.00022999,2]
[315754592,1709163069313,-500.0,0.00022999,2]
[315754593,1709163069322,-500.0,0.00022999,2]
[315754594,1709163069330,-558.82457211,0.00022999,2]
[315754595,1709163069340,-500.0,0.00022999,2]
[315754596,1709163069349,-286.37730438,0.00022999,2]
[315754597,1709163069357,-500.0,0.00022999,2]
[315754598,1709163069366,-193.04743793,0.00022999,2]
[315754600,1709163710812,391.0,0.0002522,120]
[315754601,1709163735956,10000.0,0.0002521,120]
[315754602,1709163752109,6818.0,0.0002521,120]
[315754603,1709163770481,-2964.23443606,0.00018668,2]
[315754604,1709163770506,-702.27838556,0.00018669,2]
[315754605,1709163770530,-3878.88501179,0.0001867,2]
[315754607,1709163964167,-408.69946908,0.00015985,2]
[315754608,1709163964191,-1412.71448902,0.00015985,2]
[315754609,1709163964218,-946.47381297,0.00015986,2]
[315754610,1709163964244,-390.0,0.00015987,2]
[315754611,1709163964272,-170.32,0.00015989,2]
[315754612,1709164082179,151.0,0.00024625,120]
[315754617,1709164162179,-702.27838556,0.00017507,2]
[315754618,1709164162200,-160.18869671,0.00017508,2]
[315754619,1709164162220,-2625.50271773,0.00017607,2]
[315754620,1709164226841,-946.47381297,0.00017606,2]
[315754621,1709164226866,-338.73171833,0.00017607,2]
[315754622,1709164226890,-4051.49283303,0.00017608,2]
[315754630,1709164231986,-1285.2055313,0.00017608,2]
[315754631,1709164231996,-716.7,0.0001761,2]
[315754632,1709164232006,-160.18869668,0.00018318,2]
[315754633,1709164232016,-1412.71448902,0.00018628,2]
[315754634,1709164232026,-150.0,0.0001863,2]
[315754635,1709164232036,-300.0,0.00018667,2]
[315754636,1709164232046,-150.0,0.00018667,2]
[315754637,1709164232055,-155.82311144,0.00018786,2]
[315754638,1709164232065,-160.18869668,0.00019127,2]
[315754639,1709164232076,-2228.01,0.00019387,2]
[315754640,1709164232087,-500.0,0.00019404,2]
[315754641,1709164232097,-758.56,0.00019419,2]
[315754642,1709164232107,-1985.94,0.00019444,2]
[315754643,1709164232120,-638.32,0.00019477,2]
[315754644,1709164232131,-150.99,0.00019498,2]
[315754645,1709164232143,-150.0,0.00019499,2]
[315754646,1709164232398,-1202.85,0.00019499,2]
[315754647,1709164232409,-250.0,0.00019519,2]
[315754648,1709164232419,-1095.438,0.00019622,2]
[315754649,1709164232433,-1901.07,0.00019622,2]
[315754650,1709164232443,-9329.85,0.00019622,2]
[315754651,1709164232453,-2398.89,0.00019622,2]
[315754652,1709164232463,-499.99,0.00019622,2]
[315754653,1709164232473,-500.82,0.00019765,2]
[315754654,1709164232483,-200.0,0.00019765,2]
[315754655,1709164232493,-7081.73909725,0.00019786,2]
[315754656,1709164232507,-1554.18043615,0.00019786,2]
[315754657,1709164232610,-929.0145636,0.00019786,2]
[315754658,1709164232627,-1063.1716106,0.00019786,2]
[315754659,1709164232645,-5716.76172245,0.00019786,2]
[315754660,1709164232666,-878.84529397,0.00019786,2]
[315754661,1709164232679,-622.575,0.00019786,2]
[315754662,1709164232692,-586.45,0.00019786,2]
[315754681,1709164237741,-1244.32,0.00015846,2]
[315754685,1709164237806,-214.44979005,0.00015846,2]
[315754686,1709164237816,-660.46640521,0.00019425,2]
[315754687,1709164237827,-1376.55592471,0.00019425,2]
[315754688,1709164237844,-713.97767008,0.00019425,2]
[315754689,1709164237859,-19658.63903466,0.00019786,2]
[315754690,1709164237871,-195.71,0.00019795,10]
[315754691,1709164237885,-23900.0,0.00019796,2]
[315754692,1709164237898,-532.88,0.00019796,2]
[315754693,1709164237910,-500.0,0.00019807,2]
[315754694,1709164237921,-200.0,0.00019813,2]
[315754695,1709164237931,-212.48,0.00019826,2]
[315754696,1709164237944,-186.67342008,0.0001987,2]
[315754697,1709164237966,-313.32657992,0.0001987,2]
[315754698,1709164237978,-879.65,0.00019871,2]
[315754699,1709164237991,-716.7,0.00019874,2]
[315754700,1709164238003,-200.0,0.00019924,2]
[315754701,1709164238016,-160.18869668,0.00019937,2]
[315754702,1709164238028,-1092.49,0.00019987,2]
[315754703,1709164238040,-6732.0,0.0002,5]
[315754704,1709164238050,-15000.0,0.0002,3]
[315754705,1709164238065,-150.99,0.0002,2]
[315754706,1709164238079,-249.10988376,0.0002,2]
[315754707,1709164238091,-250.0,0.0002007,2]
[315754708,1709164238103,-166.31,0.00020188,2]
[315754709,1709164238115,-20414.3,0.00020227,2]
[315754710,1709164238126,-159.63126583,0.00020241,2]
[315754711,1709164238138,-420.0,0.00020354,2]
[315754713,1709164238150,-163.59,0.00020358,2]
[315754715,1709164238163,-739.41,0.00020531,10]
[315754717,1709164238178,-210.0,0.00020534,2]
[315754719,1709164238188,-2000.0,0.00020548,2]
[315754721,1709164238198,-150.96,0.0002056,20]
[315754724,1709164238210,-499.18,0.00020687,2]
[315754726,1709164238222,-150.99,0.00020699,2]
[315754728,1709164238233,-160.18869668,0.00020746,2]
[315754730,1709164238246,-2471.67,0.00020821,2]
[315754733,1709164238259,-201.0,0.00020872,2]
[315754735,1709164238271,-10000.0,0.00021,5]
[315754738,1709164238282,-1978.63,0.00021096,2]
[315754741,1709164238292,-185.0,0.00021229,2]
[315754745,1709164238303,-159.63126582,0.00021233,2]
[315754747,1709164238314,-150.0,0.00021364,2]
[315754749,1709164238325,-163.59,0.00021419,2]
[315754751,1709164238337,-172.2,0.00021475,2]
[315754754,1709164238349,-150.0,0.00021478,2]
[315754756,1709164238360,-160.18869668,0.00021556,2]
[315754758,1709164238372,-177.93,0.00021597,2]
[315754760,1709164238384,-201.0,0.00021722,3]
[315754763,1709164238396,-621.66,0.00021728,2]
[315754765,1709164238408,-25891.17382911,0.00021798,2]
[315754768,1709164238421,-2436.82338632,0.00021798,2]
[315754774,1709164238474,-155.0,0.00017607,2]
[315754777,1709164238485,-23553.00278457,0.00021798,2]
[315754779,1709164238496,-5500.0,0.000219,2]
[315754781,1709164238506,-826.0,0.000219,2]
[315754783,1709164238517,-224.57,0.00021918,2]
[315754786,1709164238530,-275.12,0.00021918,2]
[315754788,1709164238541,-150.0,0.00021918,2]
[315754790,1709164238552,-155.0,0.00021918,2]
[315754792,1709164238562,-500.0,0.00022,2]
[315754794,1709164238573,-500.0,0.00022,2]
[315754796,1709164238582,-500.0,0.00022,2]
[315754799,1709164238597,-500.0,0.00022,2]
[315754801,1709164238607,-612.55,0.00022,2]
[315754803,1709164238617,-500.0,0.00022,2]
[315754805,1709164238628,-500.0,0.00022,2]
[315754807,1709164238638,-500.0,0.00022,2]
[315754809,1709164238649,-500.0,0.00022,2]
[315754810,1709164238659,-419.5,0.00022,2]
[315754811,1709164238670,-10000.0,0.00022,10]
[315754812,1709164238680,-500.0,0.00022,2]
[315754813,1709164238691,-750.0,0.00022,3]
[315754814,1709164238701,-224.57,0.00022033,2]
[315754815,1709164238711,-275.12,0.00022033,2]
[315754816,1709164238722,-716.7,0.00022137,2]
[315754817,1709164238732,-355.74,0.00022145,2]
[315754818,1709164238743,-224.57,0.00022149,2]
[315754819,1709164238754,-275.12,0.00022149,2]
[315754820,1709164238765,-1985.94,0.00022183,2]
[315754821,1709164238776,-424.38,0.00022186,2]
[315754822,1709164238788,-182.55,0.00022215,2]
[315754823,1709164238799,-159.63126582,0.00022225,2]
[315754824,1709164238810,-6195.2679082,0.00022225,2]
[315754825,1709164238821,-500.82,0.00022235,2]
[315754826,1709164238832,-175.54438994,0.00022255,2]
[315754827,1709164238843,-224.57,0.00022264,2]
[315754828,1709164238853,-275.12,0.00022264,2]
[315754829,1709164238864,-62877.86365501,0.00022265,4]
[315754850,1709164242893,-18625.48364449,0.00022265,4]
[315754851,1709164242906,-817.93661558,0.00022265,4]
[315754852,1709164242921,-1383.35720689,0.00022265,4]
[315754853,1709164242955,-5010.59540097,0.00022265,4]
[315754858,1709164244680,-337.16740778,0.00017607,2]
[315754859,1709164244692,-78.4104446,0.00017607,2]
[315754860,1709164244702,-547.5095554,0.00022264,2]
[315754861,1709164244714,-398.96425757,0.00022264,2]
[315754862,1709164244724,-1959.53637407,0.00022264,2]
[315754863,1709164244746,-1004.69806199,0.00022264,2]
[315754864,1709164244756,-2405.6996411,0.00022265,4]
[315754865,1709164244767,-1110.22647433,0.00022265,4]
[315754866,1709164244778,-622.592725,0.00022265,4]
[315754867,1709164244790,-1228.7027817,0.00022265,4]
[315754868,1709164244800,-3458.1798433,0.00022265,2]
[315754869,1709164246153,-1336.29329913,0.00022264,2]
[315754870,1709164246163,-1636.57804882,0.00022265,2]
[315754871,1709164246179,-12539.35291224,0.00022265,2]
[315754872,1709164246191,-10106.91661701,0.00022265,2]